Cogmind - Beta 15 @@@ ROGUE MODE // 2025.05.18 @ 13:19:00 Player: Cheeriohz Result: Destroyed by S-10 Pest with Light Assault Rifle Performance ------------- Evolutions (0) 0 Regions Visited (2) 400 Robots Destroyed (26) 130 Value Destroyed (581) 581 Prototype IDs (0) 0 Alien Tech Used (0) 0 Bonus (0) 0 TOTAL SCORE: 1111 Bonus ------- None Cogmind --------- Core Integrity 0/250 Matter 262/300 Energy 200/200 System Corruption 0% Temperature Cool (0) Movement Treading (240) Ox1 Location -10/Subcaves Parts ------- > --- POWER (1) -------- Subdweller Power Source > --- PROPULSION (2) --- Light Treads > --- UTILITY (2) ------ Large Storage Unit Seismic Detector > --- WEAPON (2) ------- Grenade Launcher Hammer > --- INVENTORY (15) --- Small Storage Unit Large Battery (200) Large Matter Pod (57) Structural Scanner Structural Scanner Improved Terrain Scanner Seismic Detector Tractor Beam Assault Rifle Light Cannon Peak State ------------ > --- POWER ------------ Subdweller Power Source > --- PROPULSION ------- Light Treads Wheel > --- UTILITY ---------- Large Storage Unit Seismic Detector > --- WEAPON ----------- Grenade Launcher Hammer > --- INVENTORY -------- Small Storage Unit Large Battery Large Matter Pod Structural Scanner Structural Scanner Improved Terrain Scanner Seismic Detector Tractor Beam Assault Rifle Light Cannon [Rating: 9] Favorites ----------- Power Ion Engine Engine Ion Engine Propulsion Wheel Treads Light Treads Leg Aluminum Leg Wheel Wheel Utility Seismic Detector Device Seismic Detector Storage Large Storage Unit Weapon Assault Rifle Ballistic Gun Assault Rifle Ballistic Cannon Light Cannon Launcher Grenade Launcher Impact Weapon Hammer Build | -11 -10 -10 ------- Run | Yrd Mat Sub Slots Evolved . | . . . Power . | . . . Propulsion . | . . . Utility . | . . . Weapon . | . . . Parts Attached 12 | 3 7 2 Power 2 | . 1 1 Engine 2 | . 1 1 Core . | . . . Reactor . | . . . Propulsion 4 | 2 2 . Treads 1 | . 1 . Leg . | . . . Wheel 3 | 2 1 . Hover . | . . . Flight . | . . . Utility 3 | 1 2 . Device 2 | 1 1 . Storage 1 | . 1 . Processor . | . . . Hackware . | . . . Protection . | . . . Artifact . | . . . Weapon 3 | . 2 1 Energy Gun . | . . . Energy Cannon . | . . . Ballistic Gun . | . . . Ballistic Cannon 1 | . 1 . Launcher 1 | . . 1 Special Weapon . | . . . Impact Weapon 1 | . 1 . Slashing Weapon . | . . . Piercing Weapon . | . . . Special Melee Weapon . | . . . Unidentified Prototypes . | . . . Parts Lost 7 | . 4 3 Power 2 | . 1 1 Propulsion 3 | . 2 1 Utility 1 | . 1 . Weapon 1 | . . 1 Highest Loss Streak 2 | . 2 2 To Critical Strikes . | . . . Average Backups 8 | 6 8 10 Power . | 1 . . Propulsion 1 | 3 1 . Utility 5 | 1 4 8 Weapon 2 | 1 2 2 Tool/Special . | . . . Unused Backups 22 | 10 4 8 Power 2 | 1 1 . Propulsion 7 | 5 2 . Utility 9 | 2 . 7 Weapon 4 | 2 1 1 Tool/Special . | . . . Average Slot Usage (%) 97 | . 99 90 Engine 11 | . 13 6 Treads 5 | . 3 14 Wheel 21 | . 24 13 Device 13 | . 13 14 Storage 14 | . 14 14 Ballistic Gun 14 | . 17 5 Ballistic Cannon 8 | . 10 4 Launcher 2 | . . 9 Impact Weapon 2 | . . 7 Peak Build Rating 9 | 8 8 9 Average Rating 7 | 6 7 7 On Entrance 7 | 6 8 8 Naked Turns . | . . . Heaviest Build 31 | 15 31 31 Greatest Support 20 | 20 20 20 Greatest Overweight (x) 1 | . 1 1 Average Overweight (x) . | . . 1 Largest Inventory Capacity 15 | 8 15 15 Average Capacity 12 | 8 11 15 Most Carried 11 | 8 11 11 Average Carried 8 | 6 8 10 Final Capacity 15 | 8 15 15 Final Carried 11 | 8 11 10 Class Distribution -------------------- 100% | Mutant Dominant Class ---------------- Mutant | -10/Materials Mutant | -10/Subcaves Resources | -11 -10 -10 ----------- Run | Yrd Mat Sub Matter Collected 909 | 314 503 92 Remotely . | . . . Salvage Created 646 | 118 507 21 Parts 47 | 13 29 5 Haulers Intercepted 2 | . 2 . Recyclers Shooed 1 | 1 . . Parts Field Recycled . | . . . Retrieved Matter . | . . . Parts Self-Destructed 6 | . . 6 Prevented . | . . . Kills | -11 -10 -10 ------- Run | Yrd Mat Sub Combat Hostiles Destroyed 20 | . 16 4 Guns 10 | . 10 . Cannons 6 | . 6 . AOE 4 | . . 4 Classes Destroyed 6 | 2 3 1 Tunneler 3 | 3 . . Hauler 2 | . 2 . Recycler 1 | 1 . . Swarmer 7 | . 5 2 Grunt 11 | . 11 . Subdweller 2 | . . 2 Best Kill Streak 3 | 2 3 2 Combat Bots Only 3 | . 3 2 Max Kills in Single Turn 2 | 1 1 2 Gunslinging . | . . . Exploded 2 | . . 2 Melee . | . . . Uniques/NPCs Destroyed . | . . . Combat | -11 -10 -10 -------- Run | Yrd Mat Sub Hostile Shots Fired 83 | . 58 25 Missed 16 | . 11 5 Hits 67 | . 47 20 Projectile 67 | . 47 20 Damage Taken 914 | . 521 393 Core 256 | . 100 156 Absorbed by Shields . | . . . Core Remaining (%) 100 | 100 . . Volleys Fired 85 | 14 62 9 Largest 2 | 2 2 1 Hottest 50 | 40 50 30 Shots Fired 161 | 28 124 9 Gun 103 | 28 75 . Cannon 49 | . 49 . Launcher 9 | . . 9 Special . | . . . Kinetic 152 | 28 124 . Thermal . | . . . Explosive 9 | . . 9 Electromagnetic . | . . . Robot Hit Streak 14 | 4 7 14 Robot Miss Streak 4 | 3 4 1 Penetration Max . | . . . Secondary Targets . | . . . Shots Hit Robots 106 | 17 82 7 Core Hits 37 | 5 27 5 Critical Kills . | . . . Critical Parts Destroyed . | . . . Critical Strikes . | . . . Melee Attacks 6 | . 3 3 Impact 6 | . 3 3 Slashing . | . . . Piercing . | . . . Sneak Attacks . | . . . Combat Hostiles . | . . . Follow-up Attacks . | . . . Damage Inflicted 2028 | 168 1239 621 Guns 808 | 168 640 . Cannons 599 | . 599 . Explosions 621 | . . 621 Melee . | . . . Ramming . | . . . Kinetic 1407 | 168 1239 . Thermal . | . . . Explosive 621 | . . 621 Electromagnetic . | . . . Impact . | . . . Slashing . | . . . Piercing . | . . . Highest Corruption . | . . . Average Corruption . | . . . Corruption Purged . | . . . Corruption Blocked . | . . . Overload Shots . | . . . Overflow Damage 3 | . . 3 Projectiles . | . . . Explosions 3 | . . 3 Melee . | . . . Knockbacks 13 | . 13 . Impact . | . . . Kinetic 11 | . 11 . Secondary 2 | . 2 . Self-Inflicted Damage 89 | . . 89 Shots 8 | . . 8 Rammed . | . . . Targets Rammed . | . . . Kicked . | . . . Crushed . | . . . Highest Temperature 11 | . 11 . Average Temperature 3 | . 3 . Received Heat Transfer 294 | . 225 69 Siege Activations . | . . . Martial Activations . | . . . Shielding Activations . | . . . Robots Disrupted . | . . . Combat Hostiles . | . . . Robots Corrupted . | . . . Combat Hostiles . | . . . Parts Fried . | . . . Impact Corruptions . | . . . Robots Melted . | . . . Combat Hostiles . | . . . Parts Melted . | . . . Heat Transferred . | . . . Parts Sabotaged . | . . . Parts Stolen . | . . . Parts Stripped . | . . . Power Chain Reactions . | . . . Alert | -11 -10 -10 ------- Run | Yrd Mat Sub Maximum Alert Level . | . . . Low Security (%) 100 | 100 100 . Level 1 . | . . . Level 2 . | . . . Level 3 . | . . . Level 4 . | . . . Level 5 . | . . . High Security . | . . . Max Security . | . . . Peak Influence 164 | 10 164 . Initial . | . . . Average 75 | 1 83 . Influence Increases 583 | 20 513 50 Destroy 0b10 Robot/C 360 | . 320 40 Destroy 0b10 Robot/NC 30 | 20 10 . Destroy Leader 84 | . 74 10 Successful Hack 25 | . 25 . Destroy Structure 9 | . 9 . Partial Spotted 15 | . 15 . Lose Combat Pursuer 60 | . 60 . Influence Decreases 533 | 20 513 . Time Decay 413 | 20 393 . Lost Part 40 | . 40 . Purge Threat 80 | . 80 . Squads Dispatched 5 | . 5 . Investigation 3 | . 3 . Extermination . | . . . Reinforcement 2 | . 2 . Assault . | . . . Garrison . | . . . Intercept . | . . . Searches Triggered . | . . . Construction Impeded . | . . . Haulers Reinforced . | . . . Active Scanning Responses . | . . . Cargo Convoy Interrupts . | . . . Stealth | -11 -10 -10 --------- Run | Yrd Mat Sub Distress Signals 4 | . 4 . Communications Jammed . | . . . Distress Signals . | . . . Times Spotted 33 | . 28 5 Peak Tracking Total 6 | . 6 3 Tactical Retreats 3 | . 3 . Traps | -11 -10 -10 ------- Run | Yrd Mat Sub Traps Triggered 2 | . 2 . Indirectly . | . . . Trap Hack Attempts . | . . . Triggered . | . . . Disarmed . | . . . Reprogrammed . | . . . Reused . | . . . Traps Extracted . | . . . Installed . | . . . Triggered . | . . . Machines | -11 -10 -10 ---------- Run | Yrd Mat Sub Machines Disabled . | . . . Max in Single Turn . | . . . Machines Repaired . | . . . Machines Dismantled . | . . . Machines Sabotaged . | . . . Overloaded Fab Kills . | . . . Hacking | -11 -10 -10 --------- Run | Yrd Mat Sub Machines Accessed 6 | . 6 . Terminals 5 | . 5 . Fabricators . | . . . Repair Stations . | . . . Recycling Units 1 | . 1 . Scanalyzers . | . . . Garrison Access . | . . . Total Hacks 24 | . 24 . Successful 11 | . 11 . Failed 13 | . 13 . Catastrophic . | . . . Database Lockouts . | . . . Manual 19 | . 19 . Terminals 22 | . 22 . Fabricators . | . . . Repair Stations . | . . . Recycling Units 2 | . 2 . Scanalyzers . | . . . Garrison Access . | . . . Terminal Hacks 5 | . 5 . Robot Analysis 3 | . 3 . Unreport Threat 1 | . 1 . Locate Traps 1 | . 1 . Fabricator Hacks . | . . . Repair Station Hacks . | . . . Recycling Unit Hacks 1 | . 1 . Retrieve Matter 1 | . 1 . Scanalyzer . | . . . Garrison Access Hacks . | . . . Unauthorized Hacks 5 | . 5 . Terminals 5 | . 5 . Botnet 5 | . 5 . Fabricators . | . . . Repair Stations . | . . . Recycling Units . | . . . Scanalyzers . | . . . Garrison Access . | . . . Data Cores Recovered . | . . . Used . | . . . Hacking Detections 6 | . 6 . Full Trace Events 1 | . 1 . Feedback Events . | . . . Feedback Blocked . | . . . Robot Schematics Acquired . | . . . Robots Built . | . . . Authchips . | . . . Time . | . . . Total Robot Build Rating . | . . . Part Schematics Acquired . | . . . Parts Built . | . . . Authchips . | . . . Time . | . . . Total Part Build Rating . | . . . Parts Repaired . | . . . Time . | . . . Parts Recycled . | . . . Recycled Matter . | . . . Retrieved Matter . | . . . Retrieved Components . | . . . Parts Scanalyzed . | . . . Part Schematics Acquired . | . . . Parts Damaged . | . . . Bothacking | -11 -10 -10 ------------ Run | Yrd Mat Sub Used RIF Installer . | . . . Robots Hacked . | . . . Non-combat . | . . . Combat . | . . . Robot Hacks Applied . | . . . Relay Couplers Released . | . . . Fabnet Peak Effective % . | . . . Robots Rewired . | . . . Allies Hacked . | . . . Hacks Repelled . | . . . Allies | -11 -10 -10 -------- Run | Yrd Mat Sub Total Allies . | . . . Largest Group . | . . . Highest-Rated Group . | . . . Highest-Rated Ally . | . . . Total Orders . | . . . Ally Attacks . | . . . Total Damage . | . . . Kills . | . . . Allies Corrupted . | . . . Allies Melted . | . . . Intel | -11 -10 -10 ------- Run | Yrd Mat Sub Active Infowar (turns) 1436 | 87 1032 317 Seismic 1436 | 87 1032 317 Robot Analysis Total 3 | . 3 . Derelict Logs Recovered 2 | . . 2 Drone Launches . | . . . Drone Recoveries . | . . . Exploration | -11 -10 -10 ------------- Run | Yrd Mat Sub Turns Passed 1480 | 112 1051 317 Spaces Moved 859 | 58 683 118 Core . | . . . Treads 223 | . 105 118 Legs 9 | 9 . . Wheels 627 | 49 578 . Hover . | . . . Flight . | . . . Fastest Speed 80 | 80 80 240 Average Speed 125 | 86 109 240 Slowest Speed 240 | 120 240 240 Overloaded Moves . | . . . Propulsion Burnouts . | . . . Robots Hopped . | . . . Potential Cave-ins . | . . . Cave-ins Triggered . | . . . Exploration Rate (%) 37 | 4 91 16 Regions Visited 2 Branch Regions 1 Pre-discovered Areas . | . . . Known Exits Taken . | . . . Unknown Exits Taken 2 | 1 1 . Scrap Searched . | . . . Spaces Dug 3 | . 3 . Terrain Destroyed 31 | . 3 28 Melee 3 | . 3 . Projectile . | . . . AOE 28 | . . 28 Terrain Rammed . | . . . Walls Destroyed . | . . . Machines Disabled . | . . . Actions | -11 -10 -10 --------- Run | Yrd Mat Sub Total 1093 | 94 861 138 Wait 105 | 5 95 5 Move 857 | 57 682 118 Hop . | . . . Pick Up 16 | 7 9 . Fast Attach 3 | 2 . 1 Attach 6 | 1 4 1 Detach 2 | 2 . . Swap 4 | . 3 1 Drop 9 | 6 3 . Fire 85 | 14 62 9 Melee 6 | . 3 3 Ram . | . . . Kick . | . . . Crush . | . . . Escape Stasis . | . . . Rewire . | . . . Trap . | . . . Miscellaneous . | . . . Route ------- -11/Scrapyard -10/Materials (discovered 5 exits: [*Mat x3] / [*Min] / [*Sub]) -10/Subcaves History --------- Turn | Location | Event 1 | -11/Scrapyard | Discovered new exit (range 3) 113 | -11/Scrapyard | Entered Materials 254 | -10/Materials | Discovered new exit (range 7) 303 | -10/Materials | Build established: Mutant 389 | -10/Materials | Discovered new exit (range 9) 539 | -10/Materials | Discovered new exit (range 15) 613 | -10/Materials | Discovered new exit (range 13) 959 | -10/Materials | Discovered new exit (range 7) 1164 | -10/Materials | Entered Subcaves 1181 | -10/Subcaves | Learned Materials terminal intel 1208 | -10/Subcaves | Learned Materials non-interactive machine intel 1277 | -10/Subcaves | Core integrity fell below 50% 1283 | -10/Subcaves | Core integrity fell below 20% 1481 | -10/Subcaves | Destroyed by S-10 Pest with Light Assault Rifle Last Messages --------------- 01208_ Acquired derelict log, extracted data. Data stored: Materials non-interactive machine intel. 01273_ Assault Rifle destroyed. 01278_ Ion Engine destroyed. 01278_ Destroyed Ion Engine. 01282_ 9V-55F(R) destroyed. 01282_ Destroyed Scrap Shield. 01284_ ZC-ICS(R) destroyed. 01286_ The unstable cave ceiling collapses. 01291_ Subatomizers dissect the Sub. Optics. 01298_ The unstable cave ceiling collapses. 01304_ Subatomizers dissect the Sub. Optics, destroying it. 01419_ Subatomizers dissect the Sub. Optics. 01451_ Acquired 47 matter. 01458_ Acquired Sub. Power Source. 01462_ Acquired 45 matter. 01473_ Subatomizers dissect the Sub. Monowheel. 01475_ Wheel destroyed. 01477_ S-10 Pest destroyed. Map ----- +----------------------------------------------------+ | #??????????????????????????????????????????? | | & ###?????????????????????????????????????????? | | & ##????????????????????????????????????????? | | & "#????????????????????????????????????????? | | #????????????????????????????????????????? | | # ##????????????????????????????????????????? | | ## ###???????????????????????????????????????? | | ##?## ""##??????????????????????????????????????? | | ????#"" #??????????????????????????????????????? | | ????#" ##??????????????????????????????????????? | | ????# #???????????????????????????????????????? | | ????## ##??????????????????????????????????????? | | ?????## #??????????????????????????????????????? | | ??????## ##?????????????????????????????????????? | | ???????## #?????????????????????????????????????? | | ????????# #?????????????????????????????????????? | | ???###### ##?????????????????????????????????????? | | ??## ##??????????????????????????????????????? | | ??# #???????????????????????????????????????? | | ??## ##???????????????????????????????????????? | | ???# ###??????????????????????????????????????? | | ??## ##????????????#########????????????????? | | ??# ####?????##?## ###?###??##??????? | | ??# #?##### # # ## ??????? | | ??# ##?# ?????? | | ??# ##?# @ #??????? | | ??# ## ###??# ## ### #??????? | | ??### #?##?????????????###[=s #???????? | | ##### #####??????????????# !! ###?????????? | | ## #???????????????#%*= ###???????????? | | ##??????????????#!= ##?????????????? | | ##?????????????#! ##??????????????? | | #### ##?????????#### ##???????????????? | | ???# ##???????## ##???????????????? | | # ????# ##??????# ###?????????????? | | ##????#### #??????### #####?????????? | | ?????????## #??????### #?????????? | | ????####### ##?????## #?????????? | | ## ######### #?????????? | | ## ## #?????????? | | # ##% #?????????? | | #### ## #? #?????????? | | ???## # # ##?# #?? #????????? | | ????## ## ## ### #####???### #?????????????? | | ?????##?## ### #?# #?????????? #?????????????? | | ????????# ??# ##?# #?????????? #?????????????? | | ???????# ?? ??####??????????? ?????????????? | | ??????# ?# #??????????????????# ????????????? | | ??????## ?? #????????????????????????????????? | | ??????? #?## #????????????????????????????????? | +----------------------------------------------------+ Best States ------------- Heat Dissipation 25 Energy Generation 15 Energy Capacity 250 Matter Stores 300 Matter Capacity 300 Sight Range 16 Terrain Scan Density 10 Evasion (%) 45 Recoil Reduction 1 Item Schematics ----------------- None Robot Schematics ------------------ None Fabricated ------------ Nothing Repaired ---------- Nothing Alien Tech Used ----------------- None Achievements -------------- None Challenges ------------ None Game ------ Seed ShiftSensorClaws Manual? 0 Play Time 00:12:24 Cumulative 211.9 hours Start 2025.05.18 @ 13:07:06 End 2025.05.18 @ 13:19:00 Sessions 1 Manual Loads 0 Difficulty Rogue Special Mode None Game No. 166 Rogue 166 Adventurer 0 Explorer 0 Win Type - Total 4 Types 2/0/1/1/0/0/0/0/0/0 Lore% 51 Gallery% 70 Achievement% 64 Wizard Run 0 Options --------- Layout 1 ASCII 0 Keyboard 1 Movement Numpad Keybinds 0 Fullscreen 1 Font 48/Smallcaps Map View 55x35 Zoom Use 0% Tactical HUD 1 Map Filters NONE Filters NONE Steam 1 RUN: 55599050-acee-4e59-a1fd-8d524a474132